bitfinex-derivatives/quotes_ETHF0:USTF0_20230702
["timestamp","ask_amount","ask_price","bid_price","bid_amount"]
[1688333416177,0.61092815,1925.6,1925.5,6.80139]
[1688333416396,0.61092815,1925.6,1925.0,1.0389]
[1688333416397,0.56748412,1925.5,1925.0,1.0389]
[1688333416578,3.282,1925.1,1924.8,0.31168]
[1688333416776,0.31167,1925.0,1924.7,4.21712]
[1688333417074,0.85420047,1924.9,1924.7,4.21712]
[1688333417274,1.16591047,1924.9,1924.7,4.21712]
[1688333417778,1.16591047,1924.9,1924.7,3.282]
[1688333418468,4.44791047,1924.9,1924.6,3.28979302]
[1688333418776,4.44791047,1924.9,1924.7,0.08161169]
[1688333418975,4.44791047,1924.9,1924.6,3.28979302]
[1688333419484,4.44791047,1924.9,1924.7,0.08160834]
[1688333419776,4.44791047,1924.9,1924.6,3.28979302]
[1688333419972,5.38322626,1924.9,1924.7,0.08160325]
[1688333420275,5.38322626,1924.9,1924.6,3.28979302]
[1688333420689,5.38322626,1924.9,1924.7,0.08159847]
[1688333421075,5.38322626,1924.9,1924.6,3.28979302]
[1688333421475,5.38322626,1924.9,1924.7,0.08159295]
[1688333421876,5.38322626,1924.9,1924.6,3.28979302]
[1688333422288,5.38322626,1924.9,1924.7,0.08158811]
[1688333422489,10.30902626,1924.9,1924.1,0.77944]
[1688333422786,10.30902626,1924.9,1924.2,3.4501576]
[1688333422787,0.31177,1924.4,1924.2,3.4501576]
[1688333422981,0.31177,1924.4,1924.2,3.282]
[1688333422982,0.85420047,1924.3,1924.2,3.282]
[1688333423180,1.16599047,1924.3,1924.2,3.282]
[1688333423380,1.16599047,1924.3,1924.2,3.58782226]
[1688333424779,1.16599047,1924.3,1924.2,0.30582226]
[1688333425882,1.16599047,1924.3,1924.1,3.28979524]
[1688333426079,1.16599047,1924.3,1924.2,0.30580742]
[1688333426584,1.16599047,1924.3,1924.2,0.22934908]
[1688333427091,1.16599047,1924.3,1924.1,3.28979524]
[1688333427485,1.16599047,1924.3,1924.2,0.15038366]
[1688333428584,1.16599047,1924.3,1923.9,3.2078]
[1688333428779,3.282,1924.2,1923.9,6.4598]
[1688333428985,1.16602047,1924.1,1923.9,6.4598]
[1688333430190,1.16602047,1924.1,1924.0,0.20867117]
[1688333430691,7.65582047,1924.1,1924.0,0.20867117]
[1688333430895,7.65582047,1924.1,1923.5,3.282]
[1688333431186,0.31188,1923.7,1923.5,3.282]
[1688333431491,0.31188,1923.7,1923.6,0.31461773]
[1688333431893,1.16608047,1923.7,1923.6,0.31461773]
[1688333432093,4.43508047,1923.7,1923.6,0.31461773]
[1688333432289,7.64288047,1923.7,1923.6,0.31461773]
[1688333432591,7.64288047,1923.7,1923.6,1e-08]
[1688333432890,7.64288047,1923.7,1923.2,7.23969]
[1688333433088,0.31193,1923.4,1923.2,7.23969]
[1688333433290,0.59866635,1923.3,1923.2,3.2078]
[1688333437593,3.87966635,1923.3,1923.0,6.80179]
[1688333437784,3.88746605,1923.3,1923.0,6.80179]
[1688333438492,3.88746605,1923.3,1923.1,0.39561273]
[1688333439395,3.281,1923.2,1923.1,0.39561273]
[1688333439589,3.59297,1923.2,1923.1,0.39561273]
[1688333444190,3.69297,1923.2,1923.1,0.39561273]
[1688333451306,3.69297,1923.2,1923.1,0.70759273]
[1688333451606,3.59297,1923.2,1923.1,0.60759273]
[1688333453703,3.59297,1923.2,1923.1,0.29561273]
[1688333462711,3.59397,1923.2,1923.1,0.29561273]
[1688333464417,4.16145412,1923.2,1923.1,0.29561273]
[1688333465011,4.13454411,1923.2,1922.9,3.56398]
[1688333465315,9.19014411,1923.2,1923.0,0.32610645]
[1688333465716,0.28671635,1923.1,1923.0,0.32610645]
[1688333465919,0.59869635,1923.1,1923.0,0.32610645]
[1688333468821,0.59869635,1923.1,1923.0,0.63809645]
[1688333472222,0.59869635,1923.1,1923.0,0.32610645]
[1688333472919,3.88069635,1923.1,1923.0,0.32610645]
[1688333474018,4.29871264,1923.1,1923.0,0.32610645]
[1688333474212,4.29871264,1923.1,1922.7,8.69284691]
[1688333474418,0.31203,1922.8,1922.7,8.272]
[1688333474618,0.59874635,1922.8,1922.7,20.75693813]
[1688333475225,0.59874635,1922.8,1922.6,0.87953412]
[1688333475226,3.87974635,1922.8,1922.6,0.87953412]
[1688333475427,3.87974635,1922.8,1922.6,0.31205]
[1688333475920,9.10164635,1922.8,1922.6,0.31205]
[1688333476218,0.31206,1922.6,1922.5,3.98789]
[1688333476520,0.59877635,1922.6,1922.5,16.47433126]
[1688333476825,3.87977635,1922.6,1922.4,10.62948]
[1688333477024,0.56748412,1922.5,1922.4,10.62948]
[1688333477222,0.56748412,1922.5,1922.3,3.2078]
[1688333477223,0.87956412,1922.5,1922.3,3.2078]
[1688333477423,0.87956412,1922.5,1922.2,0.31212]
[1688333477424,3.56871635,1922.4,1922.2,0.31212]
[1688333477619,0.31211,1922.3,1922.2,0.31212]
[1688333477833,0.31211,1922.3,1922.2,3.56412]
[1688333478119,6.59818812,1922.4,1922.2,3.56412]
[1688333478324,6.28609812,1922.3,1922.2,0.31212]
[1688333478520,6.28609812,1922.3,1922.2,3.56412]
[1688333478722,0.31211,1922.3,1922.2,3.56412]
[1688333480628,0.59882635,1922.3,1922.2,3.56412]
[1688333481630,0.31211,1922.3,1922.2,3.56412]
[1688333482237,0.31211,1922.3,1922.2,3.59412]
[1688333483132,4.04927,1922.4,1922.2,3.59412]
[1688333483328,7.06636812,1922.4,1922.3,3.84948412]
[1688333483528,0.78027,1922.4,1922.3,4.16159412]
[1688333484933,0.3121,1922.5,1922.3,4.16159412]
[1688333485231,0.3121,1922.5,1922.3,7.36939412]
[1688333487730,0.72713201,1922.5,1922.4,0.39669134]
[1688333487936,1.01384836,1922.5,1922.4,0.70878134]
[1688333488235,0.59881635,1922.5,1922.4,0.70878134]
[1688333488636,0.3121,1922.5,1922.4,0.70878134]
[1688333490440,0.59881635,1922.5,1922.4,0.70878134]
[1688333492937,0.3121,1922.5,1922.4,0.70878134]
[1688333494238,0.59881635,1922.5,1922.4,0.70878134]
[1688333499139,13.08639042,1922.5,1922.4,0.70878134]
[1688333502639,13.08639042,1922.5,1922.4,3.99078134]
[1688333503039,0.59881635,1922.5,1922.4,3.99078134]
[1688333503746,0.3121,1922.5,1922.4,3.99078134]
[1688333505242,0.59881635,1922.5,1922.4,3.99078134]
[1688333509054,12.90955936,1922.6,1922.4,3.99078134]
[1688333509347,0.31205,1922.8,1922.5,7.05728412]
[1688333509547,0.31205,1922.8,1922.7,3.252]
[1688333509741,0.31205,1922.8,1922.7,3.90896973]
[1688333510045,5.56913,1922.9,1922.7,4.47645385]
[1688333510444,5.98024168,1922.9,1922.7,4.47645385]
[1688333512342,9.54795803,1922.9,1922.7,0.65696973]
[1688333518357,5.98023168,1922.9,1922.8,0.56748412]
[1688333518655,5.98023168,1922.9,1922.8,1.22442459]
[1688333521154,6.26694803,1922.9,1922.8,1.22442459]
[1688333521858,6.26693803,1922.9,1922.8,1.22442459]
[1688333524156,5.98022168,1922.9,1922.8,1.22442459]
[1688333524961,6.26693803,1922.9,1922.8,0.65694047]
[1688333529262,7.20344809,1922.9,1922.8,0.65694047]
[1688333530766,6.91673174,1922.9,1922.8,0.65694047]
[1688333532866,10.47244809,1922.9,1922.8,0.65694047]
[1688333533062,10.18573174,1922.9,1922.8,0.65694047]
[1688333533870,10.47244809,1922.9,1922.8,0.65694047]
[1688333542788,7.20344809,1922.9,1922.8,0.65694047]
[1688333543283,6.91673174,1922.9,1922.8,0.65694047]
[1688333544876,6.60472174,1922.9,1922.8,3.93894047]
[1688333545081,0.93651006,1922.9,1922.8,3.93894047]
[1688333545277,0.77999,1923.1,1922.8,7.14674047]
[1688333545486,0.312,1923.0,1922.9,0.87948412]
[1688333545687,6.56520006,1923.1,1922.9,0.87948412]
[1688333545886,0.93651006,1923.0,1922.9,1.22433173]
[1688333546183,0.93651006,1923.0,1922.9,6.25523173]
[1688333547889,1.24850006,1923.0,1922.9,6.25523173]
[1688333549584,0.93651006,1923.0,1922.9,6.25523173]
[1688333549789,0.93651006,1923.0,1922.9,9.53723173]
[1688333549977,0.4254314,1923.1,1922.9,9.53723173]
[1688333549978,0.93651006,1923.2,1922.9,9.53723173]
[1688333550178,0.93651006,1923.2,1923.1,3.59398]
[1688333550584,0.93651006,1923.2,1923.1,4.50630104]
[1688333551792,1.24847006,1923.2,1923.1,4.50630104]
[1688333552897,0.93651006,1923.2,1923.1,4.50630104]
[1688333558893,6.4712175,1923.3,1923.1,4.50630104]
[1688333559698,6.7831675,1923.3,1923.1,4.50630104]
[1688333559894,0.93651006,1923.2,1923.1,4.50630104]
[1688333560405,6.4712175,1923.3,1923.1,4.50630104]
[1688333561500,6.4712175,1923.3,1923.2,6.4598]
[1688333561801,6.4712175,1923.3,1923.2,6.77177]
[1688333562700,1.3572175,1923.3,1923.2,6.77177]
[1688333562911,1.3572175,1923.3,1923.2,7.01552276]
[1688333567411,0.0077997,1923.3,1923.2,10.29752276]
[1688333567601,0.0077997,1923.3,1923.2,10.05377]
[1688333568303,0.0077997,1923.3,1923.2,14.95940445]
[1688333569003,0.0077997,1923.3,1923.2,14.88527]
[1688333569503,0.0077997,1923.3,1923.2,14.95884114]
[1688333570104,0.60646605,1923.3,1923.2,14.95884114]
[1688333570306,0.3197497,1923.3,1923.2,14.95884114]
[1688333570503,0.0077997,1923.3,1923.2,14.95884114]
[1688333570905,0.0077997,1923.3,1923.2,11.70684114]
[1688333593926,0.0077997,1923.3,1923.2,12.11626438]
[1688333596639,0.0077997,1923.3,1923.2,12.04269324]
[1688333602244,0.0077997,1923.3,1923.2,8.83489324]
[1688333602543,0.0077997,1923.3,1923.2,12.04269324]
[1688333602737,0.0077997,1923.3,1923.2,15.32469324]
[1688333605645,0.0077997,1923.3,1923.2,10.49319324]
[1688333605847,0.0077997,1923.3,1923.2,15.28449324]
[1688333606541,0.0077997,1923.3,1923.2,13.4592075]
[1688333606742,0.0077997,1923.3,1923.2,13.7711775]
[1688333612842,0.0077997,1923.3,1923.2,12.00249324]
[1688333620452,0.0077997,1923.3,1923.2,15.28449324]
[1688333652680,5.94641006,1923.5,1923.2,15.28449324]
[1688333652877,5.94641006,1923.5,1923.4,6.4898]
[1688333653078,5.94641006,1923.5,1923.4,6.80173]
[1688333665582,5.94641006,1923.5,1923.4,7.20908678]
[1688333673777,6.25832006,1923.5,1923.4,7.20908678]
[1688333675490,5.94641006,1923.5,1923.4,7.20908678]
[1688333681984,6.23312641,1923.5,1923.4,7.20908678]
[1688333682394,5.94641006,1923.5,1923.4,7.20908678]
[1688333686102,0.93651006,1923.5,1923.4,7.20908678]
[1688333686304,0.72812631,1923.6,1923.4,12.20908678]
[1688333686305,0.00779849,1923.6,1923.4,12.20908678]
[1688333686502,0.00779849,1923.6,1923.5,8.96668412]
[1688333686805,0.00779849,1923.6,1923.5,9.27860412]
[1688333697812,0.15251421,1923.6,1923.5,9.27860412]
[1688333715530,0.75113056,1923.6,1923.5,3.59392]
[1688333715732,1.68764062,1923.6,1923.5,3.59392]
[1688333718050,1.40092427,1923.6,1923.5,3.59392]
[1688333729750,1.08902427,1923.6,1923.5,3.59392]
[1688333730849,1.40092427,1923.6,1923.5,3.59392]
[1688333734158,1.68764062,1923.6,1923.5,3.59392]
[1688333735856,1.40092427,1923.6,1923.5,3.59392]
[1688333736056,1.68764062,1923.6,1923.5,3.59392]
[1688333736760,1.40092427,1923.6,1923.5,3.59392]
[1688333737156,1.68764062,1923.6,1923.5,3.59392]
[1688333737556,1.40092427,1923.6,1923.5,3.59392]
[1688333737958,1.68764062,1923.6,1923.5,3.59392]
[1688333738660,1.37574062,1923.6,1923.5,3.59392]
[1688333738858,1.40092427,1923.6,1923.5,3.59392]
[1688333740267,1.08902427,1923.6,1923.5,3.59392]
[1688333740768,1.40092427,1923.6,1923.5,3.59392]
[1688333741168,1.68764062,1923.6,1923.5,3.59392]
[1688333741357,1.40092427,1923.6,1923.5,3.59392]
[1688333741764,1.08902427,1923.6,1923.5,3.59392]
[1688333748772,1.40092427,1923.6,1923.5,3.59392]
[1688333750471,1.08902427,1923.6,1923.5,8.69792]
[1688333750671,0.15251421,1923.6,1923.5,8.69792]
[1688333751872,0.15251421,1923.6,1923.5,3.69792]
[1688333752079,0.15251421,1923.6,1923.5,8.69792]
[1688333755079,0.15251421,1923.6,1923.5,9.11241054]
[1688333756980,0.15251421,1923.6,1923.5,9.00841054]
[1688333775994,5.48327,1923.8,1923.5,12.29041054]
[1688333775995,5.1714,1923.8,1923.5,12.29041054]
[1688333776194,6.29036082,1923.9,1923.8,3.282]
[1688333776495,5.0473,1923.9,1923.8,6.87587]
[1688333776692,5.0473,1923.9,1923.8,7.44335412]
[1688333783798,5.33398032,1923.9,1923.8,7.44335412]
[1688333787601,5.33398032,1923.9,1923.8,7.85695992]
[1688333789401,0.28668032,1923.9,1923.8,7.85695992]
[1688333790510,0.21157318,1923.9,1923.8,7.85695992]
[1688333802516,0.00779687,1924.0,1923.9,5.0]
[1688333802718,0.00779687,1924.0,1923.9,11.80165]
[1688333805014,0.00779687,1924.0,1923.9,16.68335]
[1688333810625,0.00779687,1924.0,1923.9,13.47555]
[1688333811229,0.00779687,1924.0,1923.9,16.68335]
[1688333817626,0.16917394,1924.0,1923.9,16.68335]
[1688333834459,0.45589029,1924.0,1923.9,16.68335]
[1688333834658,1.10507732,1924.0,1923.9,16.68335]
[1688333835251,1.39179367,1924.0,1923.9,16.68335]
[1688333835955,1.10507732,1924.0,1923.9,16.68335]
[1688333836954,0.16917394,1924.0,1923.9,16.68335]
[1688333839365,1.10507732,1924.0,1923.9,16.68335]
[1688333841954,0.16917394,1924.0,1923.9,16.68335]
[1688333857680,0.16917394,1924.0,1923.9,11.68335]
[1688333857877,0.16917394,1924.0,1923.9,16.68335]
[1688333873293,0.16917394,1924.0,1923.9,11.68335]
[1688333875501,0.16917394,1924.0,1923.9,16.68335]
[1688333884011,0.16917394,1924.0,1923.9,13.47555]
[1688333884210,0.16917394,1924.0,1923.9,16.68335]
[1688333885515,5.2617,1924.2,1924.0,0.56748412]
[1688333885706,5.2617,1924.2,1924.1,6.80162]
[1688333893216,5.38432173,1924.2,1924.1,6.80162]
[1688333898929,5.38432173,1924.2,1924.1,7.21134875]
[1688333905825,6.3200711,1924.2,1924.1,7.21134875]
[1688333917945,0.00779565,1924.3,1924.1,7.21134875]
[1688333918141,0.09212077,1924.2,1924.1,9.01984875]
[1688333918437,0.09212077,1924.2,1924.1,12.83933287]
[1688333918648,0.09212077,1924.2,1924.1,17.83933287]
[1688333922643,0.00779565,1924.3,1924.1,17.83933287]
[1688333922838,0.0921501,1924.2,1924.1,14.58733287]
[1688333923039,0.06912144,1924.2,1924.1,17.86933287]
[1688333923342,0.00779565,1924.3,1924.1,17.86933287]
[1688333923640,0.00779565,1924.3,1924.2,3.5938]
[1688333924352,0.00779565,1924.3,1924.2,8.725]
[1688333927553,0.606292,1924.3,1924.0,0.31182]
[1688333927844,0.606292,1924.3,1923.7,3.51965]
[1688333928044,7.095092,1924.3,1923.7,3.51965]
[1688333928237,7.095092,1924.3,1923.7,3.2078]
[1688333928435,7.095092,1924.3,1923.4,3.2078]
[1688333928436,0.31183,1924.0,1923.4,3.2078]
[1688333928643,0.31187,1923.8,1923.4,3.2078]
[1688333928835,4.08716412,1923.7,1923.3,0.31973849]
[1688333929036,7.36816412,1923.7,1923.4,3.57253603]
[1688333929241,0.31192,1923.5,1923.4,3.282]
[1688333929437,0.87940412,1923.5,1923.4,3.58503984]
[1688333930345,4.08720412,1923.5,1923.4,3.58503984]
[1688333930644,4.08720412,1923.5,1923.4,3.89696984]
[1688333936650,0.87940412,1923.5,1923.4,3.89696984]
[1688333937851,0.87940412,1923.5,1923.4,3.58503984]
[1688333942056,0.87940412,1923.5,1923.4,3.55503984]
[1688333942743,0.87940412,1923.5,1923.4,3.58503984]
[1688333944145,1.30333609,1923.5,1923.4,3.58503984]
[1688333946864,1.30333609,1923.5,1923.4,3.89696984]
[1688333948255,1.30333609,1923.5,1923.4,0.61496984]
[1688333949355,0.73585197,1923.5,1923.4,3.86696984]
[1688333954768,1.02256832,1923.5,1923.4,3.86696984]
[1688333956358,0.73585197,1923.5,1923.4,3.86696984]
[1688333957855,1.02256832,1923.5,1923.4,3.86696984]
[1688333961673,0.73585197,1923.5,1923.4,3.86696984]
[1688333962668,0.73585197,1923.5,1923.4,3.89696984]
[1688333966875,1.02256832,1923.5,1923.4,3.89696984]
[1688333970379,1.02256832,1923.5,1923.4,3.58503984]
[1688333971778,1.02256832,1923.5,1923.4,3.89696984]
[1688333972381,1.95870452,1923.5,1923.4,3.89696984]
[1688333978181,1.95870452,1923.5,1923.4,0.61496984]
[1688333980595,1.2480562,1923.5,1923.4,3.89696984]
[1688333980893,0.31192,1923.5,1923.4,3.89696984]
[1688333985296,0.59863635,1923.5,1923.4,3.89696984]
[1688333986702,0.31192,1923.5,1923.4,3.89696984]
[1688333991104,0.31192,1923.5,1923.4,9.06306984]
[1688334001312,0.31192,1923.5,1923.4,5.78106984]
[1688334001909,0.59863635,1923.5,1923.4,5.78106984]
[1688334002214,0.31192,1923.5,1923.4,5.78106984]
[1688334002619,0.31192,1923.5,1923.4,9.06306984]
[1688334006014,0.31192,1923.5,1923.4,9.26696535]
[1688334008522,3.86763635,1923.5,1923.4,5.98496535]
[1688334008723,4.80377255,1923.5,1923.4,5.98496535]
[1688334009130,1.53477255,1923.5,1923.4,9.26696535]
[1688334009321,0.59863635,1923.5,1923.4,9.26696535]
[1688334009828,1.53477255,1923.5,1923.4,9.26696535]
[1688334011123,1.2480562,1923.5,1923.4,9.26696535]
[1688334011416,0.31192,1923.5,1923.4,9.26696535]
[1688334040945,0.31192,1923.5,1923.4,9.06141873]
[1688334050456,0.59863635,1923.5,1923.4,9.06141873]
[1688334050660,0.31192,1923.5,1923.4,9.06141873]
[1688334052071,0.59863635,1923.5,1923.4,9.06141873]
[1688334052459,3.86763635,1923.5,1923.4,5.77941873]
[1688334052654,8.01157255,1923.5,1923.4,5.77941873]
[1688334053758,4.74257255,1923.5,1923.4,9.06141873]
[1688334062669,4.74257255,1923.5,1923.4,5.77941873]
[1688334063669,1.53477255,1923.5,1923.4,5.77941873]
[1688334063871,4.74257255,1923.5,1923.4,5.77941873]
[1688334070069,4.4558562,1923.5,1923.4,5.77941873]
[1688334071669,4.74257255,1923.5,1923.4,5.77941873]
[1688334074077,4.4558562,1923.5,1923.4,5.77941873]
[1688334074674,4.74257255,1923.5,1923.4,5.77941873]
[1688334079066,4.4558562,1923.5,1923.4,5.77941873]
[1688334080570,4.74257255,1923.5,1923.4,5.77941873]
[1688334082673,8.02357255,1923.5,1923.4,5.77941873]
[1688334087877,8.02357255,1923.5,1923.4,8.77941873]
[1688334088676,8.02357255,1923.5,1923.4,8.46748873]
[1688334088879,8.02357255,1923.5,1923.4,3.30138873]
[1688334088880,8.01157255,1923.5,1923.4,3.30138873]
[1688334093478,5.01157255,1923.5,1923.4,0.30138873]
[1688334093683,4.7248562,1923.5,1923.3,0.57528261]
[1688334093987,4.12320047,1923.4,1923.3,0.00779849]
[1688334094187,4.43513047,1923.4,1923.3,0.00779849]
[1688334099487,5.0,1923.3,1922.8,4.8538]
[1688334099683,6.78881,1922.9,1922.8,4.8538]
[1688334099884,7.07552635,1922.9,1922.8,4.55015975]
[1688334100186,7.64301047,1922.9,1922.4,3.282]
[1688334100381,3.2078,1922.7,1922.5,4.9259]
[1688334100582,3.2078,1922.7,1922.5,5.65051475]
[1688334100583,3.86777635,1922.6,1922.5,5.65051475]
[1688334100979,4.43526047,1922.6,1922.5,5.65051475]
[1688334105899,4.85597254,1922.6,1922.5,5.65051475]
[1688334106285,4.85597254,1922.6,1922.5,0.72461475]
[1688334108504,4.85597254,1922.6,1922.5,0.42461475]
[1688334108797,4.85597254,1922.6,1922.5,0.76626642]
[1688334109498,4.87509922,1922.6,1922.5,0.46626642]
[1688334109696,4.87509922,1922.6,1922.5,0.691265]
[1688334111208,4.87509922,1922.6,1922.5,0.27879032]
[1688334111391,5.0,1922.5,1922.0,4.9796]
[1688334111590,6.4898,1922.1,1922.0,4.81028077]
[1688334111793,7.08865635,1922.1,1921.8,4.2499]
[1688334111993,7.08865635,1922.1,1921.4,3.2078]
[1688334111994,6.4768,1921.9,1921.4,3.2078]
[1688334112301,3.2078,1921.7,1921.5,0.00780579]
[1688334112598,4.44742047,1921.6,1921.5,0.00780579]
[1688334113189,7.72942047,1921.6,1921.5,0.00780579]
[1688334115500,7.72942047,1921.6,1921.5,0.86397321]
[1688334122804,8.14131267,1921.6,1921.5,0.86397321]
[1688334124307,7.2871122,1921.6,1921.5,0.86397321]
[1688334124498,7.57382855,1921.6,1921.5,0.86397321]
[1688334124805,7.2871122,1921.6,1921.5,0.86397321]
[1688334125195,4.0061122,1921.6,1921.5,0.86397321]
[1688334125398,3.1335122,1921.6,1921.5,1.17621321]
[1688334125602,3.4457322,1921.6,1921.5,1.17621321]
[1688334125803,1.9236322,1921.6,1921.5,1.17621321]
[1688334126302,1.8829322,1921.6,1921.5,1.17621321]
[1688334126502,0.78056,1921.7,1921.5,1.17621321]
[1688334126810,0.78056,1921.7,1921.6,4.08750412]
[1688334127206,0.78056,1921.7,1921.6,4.75872927]
[1688334127410,4.04956,1921.7,1921.6,4.75872927]
[1688334128002,4.47072136,1921.7,1921.6,4.75872927]
[1688334129616,0.78056,1921.7,1921.6,8.04072927]
[1688334131304,6e-05,1921.7,1921.6,8.14472927]
[1688334131704,0.78062,1921.7,1921.6,8.14472927]
[1688334132308,3.60101599,1921.8,1921.6,8.14472927]
[1688334132703,3.60101599,1921.8,1921.7,0.104]
[1688334132704,0.32001599,1921.8,1921.7,0.104]
[1688334133012,0.00780599,1921.8,1921.7,1.15664036]
[1688334137710,0.31999599,1921.8,1921.7,1.15664036]
[1688334137915,0.00780599,1921.8,1921.7,1.15664036]
[1688334142115,0.31999599,1921.8,1921.7,1.15664036]
[1688334142817,0.31999599,1921.8,1921.7,4.43864036]
[1688334144619,0.00780599,1921.8,1921.7,4.43864036]
[1688334153628,0.31215,1922.2,1921.7,4.85073889]
[1688334153926,0.31215,1922.2,1922.1,3.51994]
[1688334154328,0.31215,1922.2,1922.1,4.10871075]
[1688334154627,0.31215,1922.2,1922.1,4.67619487]
[1688334154822,0.31215,1922.2,1922.1,9.90599487]
[1688334155024,9.58945199,1922.3,1922.1,9.90599487]
[1688334158728,8.80907199,1922.3,1922.1,9.90599487]
[1688334159324,9.12118199,1922.3,1922.1,9.90599487]
[1688334159524,8.80907199,1922.3,1922.1,9.90599487]
[1688334159831,9.12118199,1922.3,1922.1,9.90599487]
[1688334161630,5.83918199,1922.3,1922.1,13.18799487]
[1688334162730,5.12030376,1922.3,1922.2,3.282]
[1688334163030,5.12030376,1922.3,1922.2,4.18289389]
[1688334163234,0.00780376,1922.3,1922.2,4.18289389]
[1688334165130,0.31991376,1922.3,1922.2,4.18289389]
[1688334172730,0.31991376,1922.3,1922.2,0.90089389]
[1688334173230,0.60663011,1922.3,1922.2,0.90089389]
[1688334173429,1.54336709,1922.3,1922.2,0.90089389]
[1688334174230,1.25665074,1922.3,1922.2,0.90089389]
[1688334184135,1.25665074,1922.3,1922.2,4.10869389]
[1688334189733,1.25665074,1922.3,1922.2,0.90089389]
[1688334193533,1.25665074,1922.3,1922.2,4.18289389]
[1688334196654,0.94454074,1922.3,1922.2,4.18289389]
[1688334196861,0.00780376,1922.3,1922.2,4.18289389]
[1688334200145,0.00780376,1922.3,1922.2,4.28689389]
[1688334211963,0.00780376,1922.3,1922.2,4.18289389]
[1688334213753,0.00780376,1922.3,1922.2,4.60128647]
[1688334215051,0.93673698,1922.6,1922.5,0.31208]
[1688334215262,0.93673698,1922.8,1922.5,7.01547244]
[1688334215460,0.93673698,1922.8,1922.7,6.4898]
[1688334215657,0.93673698,1922.8,1922.7,7.36932412]
[1688334215956,0.93673698,1922.8,1922.7,7.54113605]
[1688334216164,6.10913831,1922.9,1922.7,7.54113605]
[1688334216356,6.10913831,1922.9,1922.8,3.59403]
[1688334216556,0.94453831,1922.9,1922.8,3.59403]
[1688334216756,0.00780133,1922.9,1922.8,3.59403]
[1688334217762,0.00780133,1922.9,1922.8,6.80183]
[1688334222477,0.00780133,1922.9,1922.8,6.97362145]
[1688334225385,0.31981133,1922.9,1922.8,6.97362145]
[1688334229187,0.00780133,1922.9,1922.8,6.97362145]
[1688334230478,0.00780133,1922.9,1922.8,11.78022145]
[1688334233979,0.00780133,1922.9,1922.8,12.19089857]
[1688334236085,0.00780133,1922.9,1922.8,17.09989857]
[1688334240309,14.93297,1923.3,1922.9,0.56748412]
[1688334240592,6.08147,1923.3,1923.2,6.80177]
[1688334240782,2.15901601,1923.3,1923.2,6.80177]
[1688334241183,1.87229966,1923.3,1923.2,6.80177]
[1688334246391,0.93632966,1923.3,1923.2,6.80177]
[1688334246594,6.27577896,1923.4,1923.2,6.80177]
[1688334246788,6.27577896,1923.4,1923.3,3.282]
[1688334246992,6.27577896,1923.4,1923.3,3.59395]
[1688334247496,6.56249531,1923.4,1923.3,3.59395]
[1688334247693,1.54279531,1923.4,1923.3,3.59395]
[1688334248197,1.25607896,1923.4,1923.3,3.59395]
[1688334250301,1.25605896,1923.4,1923.3,3.59395]
[1688334252599,1.25605896,1923.4,1923.3,6.80175]
[1688334253392,1.25605896,1923.4,1923.3,7.36923412]
[1688334260299,1.25605896,1923.4,1923.3,4.16143412]
[1688334265510,1.54277531,1923.4,1923.3,4.16143412]
[1688334267611,1.54277531,1923.4,1923.3,3.59395]
[1688334269503,1.25605896,1923.4,1923.3,3.59395]
[1688334274503,1.25605896,1923.4,1923.3,6.80175]
[1688334277812,1.54277531,1923.4,1923.3,6.80175]
[1688334278513,1.25605896,1923.4,1923.3,6.80175]
[1688334293828,1.54277531,1923.4,1923.3,6.80175]
[1688334296429,1.25605896,1923.4,1923.3,6.80175]
[1688334302941,0.94412896,1923.4,1923.3,6.80175]
[1688334306239,0.0077993,1923.4,1923.3,6.80175]
[1688334307041,0.94412896,1923.4,1923.3,6.80175]
[1688334309051,0.0077993,1923.4,1923.3,6.80175]
[1688334316349,0.94412896,1923.4,1923.3,6.80175]
[1688334330962,0.0077993,1923.4,1923.3,6.80175]
[1688334334061,0.94412896,1923.4,1923.3,6.80175]
[1688334335973,0.0077993,1923.4,1923.3,6.80175]
[1688334338171,0.94412896,1923.4,1923.3,6.80175]
[1688334361886,1.25605896,1923.4,1923.3,6.80175]
[1688334378488,1.54277531,1923.4,1923.3,6.80175]
[1688334380193,1.25605896,1923.4,1923.3,6.80175]
[1688334381199,1.54277531,1923.4,1923.3,6.80175]
[1688334381699,1.25605896,1923.4,1923.3,6.80175]
[1688334387597,1.54277531,1923.4,1923.3,6.80175]
[1688334388891,1.54277531,1923.4,1923.3,3.282]
[1688334389093,8.03257531,1923.4,1923.0,3.282]
[1688334389295,3.2078,1923.2,1923.0,3.282]
[1688334389614,3.88069635,1923.1,1922.8,3.282]
[1688334389896,4.55532412,1923.0,1922.9,0.23584246]
[1688334390103,4.55532412,1923.0,1922.8,3.282]
[1688334390104,5.49165378,1923.0,1922.8,3.282]
[1688334390300,5.49165378,1923.0,1922.9,0.30817306]
[1688334390496,5.77837013,1923.0,1922.9,0.30817306]
[1688334390703,5.77837013,1923.0,1922.8,3.282]
[1688334390897,5.77837013,1923.0,1922.9,0.30817182]
[1688334391098,5.77837013,1923.0,1922.8,3.282]
[1688334391406,5.77837013,1923.0,1922.9,0.30817068]
[1688334391598,5.77837013,1923.0,1922.8,3.282]
[1688334392009,5.77837013,1923.0,1922.9,0.30816938]
[1688334392398,5.77837013,1923.0,1922.8,3.282]
[1688334392608,5.77837013,1923.0,1922.9,0.30816749]
[1688334392904,9.06037013,1923.0,1922.7,3.59404]
[1688334393106,0.93632966,1922.9,1922.7,3.59404]
[1688334393299,1.16623047,1922.8,1922.7,3.282]
[1688334394103,7.65603047,1922.8,1922.6,0.00780133]
[1688334394406,0.93632966,1922.7,1922.6,0.00780133]
[1688334394605,1.24837966,1922.7,1922.6,0.00780133]
[1688334399007,0.31205,1922.7,1922.6,0.00780133]
[1688334399210,3.59305,1922.7,1922.6,0.00780133]
[1688334402203,3.59305,1922.7,1922.6,0.4755799]
[1688334403413,4.52972947,1922.7,1922.6,0.4755799]
[1688334404105,3.59305,1922.7,1922.6,0.4755799]
[1688334404704,4.52974521,1922.7,1922.6,0.4755799]
[1688334404913,3.59305,1922.7,1922.6,0.4755799]
[1688334425421,4.52975832,1922.7,1922.6,0.46777391]
[1688334425722,7.81175832,1922.7,1922.0,3.56415]
[1688334425933,0.31213,1922.2,1922.1,5.2695]
[1688334426117,7.64313047,1922.2,1922.1,10.2859]
[1688334426317,7.64313047,1922.2,1922.1,10.59804]
[1688334429724,7.64313047,1922.2,1922.1,10.2859]
[1688334430731,7.64313047,1922.2,1922.1,10.59804]
[1688334431328,7.64313047,1922.2,1922.1,10.2859]
[1688334431530,7.64313047,1922.2,1922.1,10.59804]
[1688334432728,7.65613047,1922.2,1922.1,10.59804]
[1688334433234,7.65613047,1922.2,1922.1,11.02545577]